bitfinex/quotes_SOLUSD_20220114
["timestamp","ask_amount","ask_price","bid_price","bid_amount"]
[1642161306583,10.7223,143.41,143.36,2.787]
[1642161307083,10.7223,143.41,143.34,2.789]
[1642161307481,10.7223,143.41,143.34,13.5011]
[1642161308682,0.26,143.41,143.34,17.2659051]
[1642161308883,2.789,143.44,143.34,17.2659051]
[1642161309185,34.7312,143.46,143.34,25.7299051]
[1642161309383,37.7702,143.46,143.35,23.2924]
[1642161309588,37.7702,143.46,143.38,10.4586]
[1642161309882,3.64091635,143.58,143.4,13.58927765]
[1642161309883,6.77864906,143.48,143.4,13.58927765]
[1642161310083,6.77864906,143.48,143.41,2.787]
[1642161310284,6.77864906,143.48,143.41,10.211]
[1642161310484,6.77864906,143.48,143.41,16.721]
[1642161310685,6.77864906,143.48,143.41,10.721]
[1642161310987,2.789,143.48,143.41,10.721]
[1642161311185,2.789,143.48,143.41,16.721]
[1642161311385,31.22010231,143.5,143.41,10.721]
[1642161311584,10.4552,143.51,143.44,10.4546]
[1642161311786,3.98964906,143.52,143.44,19.5026]
[1642161311985,0.25,143.51,143.44,19.7526]
[1642161312686,0.25,143.51,143.44,20.0126]
[1642161313086,24.93439756,143.52,143.44,20.0126]
[1642161313589,24.68439756,143.52,143.44,20.0126]
[1642161313786,24.68439756,143.52,143.44,19.7526]
[1642161313986,24.94439756,143.52,143.44,19.7526]
[1642161314286,24.94439756,143.52,143.44,20.0126]
[1642161314486,24.68439756,143.52,143.44,19.7526]
[1642161314888,35.13809756,143.52,143.44,19.7526]
[1642161315086,35.38809756,143.52,143.44,19.7526]
[1642161315587,35.13809756,143.52,143.44,19.7526]
[1642161315990,35.39809756,143.52,143.44,19.7526]
[1642161316590,35.39809756,143.52,143.44,19.5026]
[1642161316794,35.39809756,143.52,143.44,19.7526]
[1642161317092,35.64809756,143.52,143.44,19.7526]
[1642161317693,35.13809756,143.52,143.44,19.7526]
[1642161317891,37.02074906,143.54,143.44,19.7526]
[1642161318091,37.02074906,143.54,143.44,44.7573]
[1642161318291,14.44234906,143.54,143.44,44.7573]
[1642161318492,27.56794906,143.56,143.44,44.7573]
[1642161318893,34.05777112,143.55,143.49,10.4511]
[1642161319600,34.31777112,143.55,143.49,10.4511]
[1642161319795,34.56777112,143.55,143.49,10.4511]
[1642161321194,39.37657897,143.56,143.49,10.4511]
[1642161321395,28.44350785,143.56,143.49,10.4511]
[1642161322396,28.44350785,143.56,143.49,13.2371]
[1642161322700,38.89420785,143.56,143.49,13.2371]
[1642161322897,39.15420785,143.56,143.49,13.2371]
[1642161323297,28.44350785,143.56,143.49,13.2371]
[1642161323500,28.44350785,143.56,143.49,10.7111]
[1642161323697,3.98964906,143.57,143.49,10.9611]
[1642161323897,3.98964906,143.58,143.49,10.9611]
[1642161324097,4.23964906,143.58,143.49,33.8874]
[1642161324297,4.23964906,143.58,143.49,39.8874]
[1642161324698,3.98964906,143.58,143.49,39.8874]
[1642161325003,3.98964906,143.59,143.49,6.25]
[1642161325199,3.98964906,143.59,143.51,17.26316219]
[1642161325400,3.98964906,143.59,143.51,95.84116219]
[1642161325597,3.98964906,143.59,143.54,10.4466]
[1642161325798,3.98964906,143.59,143.55,37.6023]
[1642161326200,3.98964906,143.61,143.55,38.1123]
[1642161326400,3.98964906,143.61,143.55,37.6023]
[1642161326602,3.98964906,143.61,143.55,2.786]
[1642161326800,6.77464906,143.61,143.52,25.3946]
[1642161327027,6.77464906,143.61,143.52,22.6096]
[1642161327201,7.02464906,143.61,143.52,22.6096]
[1642161327400,6.77464906,143.61,143.53,28.54987346]
[1642161327602,6.77464906,143.61,143.54,10.4474]
[1642161327803,27.27435412,143.63,143.55,2.786]
[1642161328003,27.27435412,143.63,143.55,3.036]
[1642161328301,27.27435412,143.63,143.56,2.8673031]
[1642161328503,27.27435412,143.63,143.57,2.785]
[1642161328708,27.27435412,143.63,143.59,10.4436]
[1642161329103,27.53435412,143.63,143.59,10.4436]
[1642161329308,0.26,143.63,143.59,15.8506]
[1642161329504,10.4442,143.65,143.59,15.8506]
[1642161329705,35.5339,143.68,143.59,15.8506]
[1642161329908,0.34966193,143.69,143.59,22.1106]
[1642161330105,0.34966193,143.69,143.64,10.4396]
[1642161330308,10.09,143.71,143.64,16.2576]
[1642161330906,20.57477588,143.71,143.64,5.818]
[1642161331105,20.57477588,143.71,143.53,78.9285]
[1642161331106,20.57477588,143.71,143.56,2.783]
[1642161331305,23.8926,143.7,143.59,10.4435]
[1642161331505,12.873,143.69,143.59,10.4435]
[1642161331710,20.33791788,143.68,143.59,10.4435]
[1642161331906,2.783,143.67,143.59,10.4435]
[1642161332310,10.4444,143.66,143.58,23.60115451]
[1642161332507,10.9544,143.66,143.58,23.60115451]
[1642161332707,1.96011375,143.63,143.56,27.5541]
[1642161332907,1.96011375,143.63,143.56,24.7711]
[1642161333109,2.22011375,143.63,143.56,24.7711]
[1642161333710,1.96011375,143.62,143.57,25.49825238]
[1642161333911,1.96011375,143.62,143.56,24.7711]
[1642161334111,2.22011375,143.62,143.56,24.7711]
[1642161334310,2.22011375,143.62,143.57,10.4453]
[1642161334549,2.47011375,143.62,143.55,2.785]
[1642161334945,1.96011375,143.62,143.55,32.08764691]
[1642161335345,1.96011375,143.61,143.55,32.08764691]
[1642161335544,12.40791375,143.61,143.55,32.08764691]
[1642161335945,2.785,143.64,143.55,29.30264691]
[1642161336351,3.035,143.64,143.55,29.30264691]
[1642161337448,3.295,143.64,143.55,29.30264691]
[1642161337649,10.4478,143.61,143.55,29.30264691]
[1642161337850,10.4478,143.61,143.54,10.4476]
[1642161338050,10.7078,143.61,143.54,10.4476]
[1642161338251,10.7078,143.61,143.53,2.785]
[1642161338451,10.9578,143.61,143.53,2.785]
[1642161338949,13.7438,143.61,143.53,2.785]
[1642161339351,83.5838,143.61,143.53,2.785]
[1642161339952,89.5838,143.61,143.53,2.785]
[1642161340150,10.09,143.6,143.48,2.786]
[1642161340349,10.09,143.6,143.46,22.8587]
[1642161340350,10.4522,143.55,143.47,2.786]
[1642161340752,10.7122,143.55,143.47,2.786]
[1642161340952,10.7122,143.55,143.46,2.787]
[1642161341150,10.9622,143.55,143.46,2.787]
[1642161341353,83.5892,143.55,143.45,2.787]
[1642161341550,13.7492,143.55,143.42,2.787]
[1642161341950,13.7492,143.55,143.42,3.037]
[1642161342150,13.7492,143.55,143.42,13.2427]
[1642161342352,36.607,143.55,143.44,27.41068623]
[1642161342551,36.607,143.55,143.45,2.787]
[1642161343552,36.607,143.55,143.45,13.4903]
[1642161343953,42.607,143.55,143.45,13.4903]
[1642161344155,42.347,143.55,143.45,13.4903]
[1642161344755,42.347,143.55,143.45,13.2403]
[1642161345057,42.347,143.55,143.45,2.787]
[1642161345455,42.607,143.55,143.45,2.787]
[1642161346358,42.607,143.55,143.44,2.787]
[1642161346554,42.607,143.55,143.44,3.037]
[1642161346954,42.607,143.55,143.44,2.787]
[1642161348457,10.09,143.54,143.44,2.787]
[1642161348656,10.4542,143.52,143.44,13.2416]
[1642161349057,10.9642,143.52,143.44,13.2416]
[1642161349856,2.787,143.58,143.45,25.50024891]
[1642161350055,10.09,143.57,143.47,10.4526]
[1642161350857,10.09,143.57,143.44,2.787]
[1642161351059,2.787,143.56,143.44,2.787]
[1642161351355,104.6892,143.55,143.44,2.787]
[1642161351556,2.787,143.54,143.44,2.787]
[1642161351958,3.297,143.54,143.44,2.787]
[1642161352159,10.4538,143.53,143.44,42.7925441]
[1642161352358,10.4538,143.53,143.44,40.0055441]
[1642161352557,10.7038,143.53,143.44,10.4551]
[1642161353563,10.7038,143.53,143.45,28.93132542]
[1642161353959,10.7038,143.53,143.46,10.4538]
[1642161354161,10.7038,143.53,143.45,28.93132542]
[1642161354357,2.787,143.52,143.45,28.93132542]
[1642161354559,10.4547,143.51,143.45,28.93132542]
[1642161354958,10.7147,143.51,143.45,28.93132542]
[1642161355359,10.7147,143.51,143.43,26.567]
[1642161355560,10.7147,143.51,143.45,10.4544]
[1642161356961,10.9647,143.51,143.43,2.787]
[1642161357363,2.787,143.5,143.4,25.5534]
[1642161357562,10.4589,143.46,143.4,22.7664]
[1642161357961,10.7189,143.46,143.4,22.7664]
[1642161360567,10.4576,143.48,143.41,23.2848322]
[1642161360794,40.8585,143.51,143.41,24.81615626]
[1642161360992,0.26,143.5,143.41,25.06615626]
[1642161361192,0.26,143.5,143.39,2.787]
[1642161361495,69.84,143.5,143.39,2.787]
[1642161361691,13.2433,143.49,143.38,13.2464]
[1642161362091,13.4933,143.49,143.38,13.2464]
[1642161362293,13.7533,143.49,143.38,13.2464]
[1642161362492,3.297,143.49,143.38,13.4964]
[1642161362792,0.51,143.49,143.38,13.4964]
[1642161362991,10.4586,143.46,143.38,13.4964]
[1642161363392,10.7186,143.46,143.38,13.4964]
[1642161363795,0.26,143.46,143.39,3.99161008]
[1642161363996,10.4571,143.48,143.4,2.787]
[1642161364195,10.4571,143.48,143.41,40.740122]
[1642161364398,10.9671,143.48,143.41,40.740122]
[1642161364696,10.9671,143.48,143.41,10.4571]
[1642161364697,0.51,143.48,143.41,10.4571]
[1642161364896,0.26,143.48,143.41,10.7071]
[1642161365097,3.297,143.5,143.41,10.7071]
[1642161365397,10.4567,143.49,143.42,13.2432]
[1642161365596,10.4567,143.49,143.42,10.4562]
[1642161365798,10.7167,143.49,143.42,10.4562]
[1642161365998,10.7167,143.49,143.4,29.59590971]
[1642161366197,10.4567,143.49,143.4,29.84590971]
[1642161366602,10.4567,143.49,143.41,10.4568]
[1642161366998,10.4567,143.49,143.41,10.7068]
[1642161367600,10.7167,143.49,143.41,10.7068]
[1642161368001,16.7167,143.49,143.42,2.787]
[1642161368201,10.4567,143.49,143.43,25.97084238]
[1642161368502,10.4553,143.5,143.43,32.16384238]
[1642161368900,0.25,143.5,143.43,32.16384238]
[1642161369302,0.25,143.5,143.43,42.61984238]
[1642161369501,0.25,143.5,143.43,16.649]
[1642161369704,0.25,143.5,143.43,10.456]
[1642161370101,43.9155,143.53,143.43,10.456]
[1642161370604,10.4553,143.5,143.43,10.456]
[1642161371003,10.9653,143.5,143.43,10.456]
[1642161371905,10.9653,143.5,143.41,25.5183]
[1642161372106,10.9653,143.5,143.41,22.7313]
[1642161372707,69.84,143.49,143.41,22.7313]
[1642161372905,10.4574,143.47,143.42,2.787]
[1642161373507,0.26,143.47,143.42,2.787]
[1642161374112,0.51,143.49,143.42,2.787]
[1642161374308,0.25,143.49,143.42,2.787]
[1642161374507,10.7065,143.49,143.42,2.787]
[1642161374907,69.84,143.48,143.42,2.787]
[1642161375409,1.70077588,143.47,143.42,2.787]
[1642161375812,2.787,143.46,143.42,2.787]
[1642161376009,72.877,143.46,143.42,2.787]
[1642161376209,1.70077588,143.45,143.42,2.787]
[1642161376409,12.16047588,143.45,143.42,2.787]
[1642161376614,12.67047588,143.45,143.42,2.787]
[1642161377411,82.51047588,143.45,143.36,25.8233]
[1642161377812,85.29947588,143.45,143.36,23.0363]
[1642161378412,85.29947588,143.45,143.34,13.2516]
[1642161378612,108.54267588,143.45,143.34,13.2516]
[1642161378818,108.54267588,143.45,143.34,13.5016]
[1642161379011,108.54267588,143.45,143.34,2.789]
[1642161379214,11.79077588,143.44,143.34,2.789]
[1642161379413,11.79077588,143.44,143.31,22.8267]
[1642161379414,10.4651,143.39,143.35,3.99270599]
[1642161379613,13.2541,143.39,143.35,3.99270599]
[1642161379811,13.5041,143.39,143.35,3.99270599]
[1642161380012,13.5041,143.39,143.3,100.58519304]
[1642161380013,13.7641,143.39,143.3,100.58519304]
[1642161380212,10.9751,143.39,143.3,95.4]
[1642161380412,10.9751,143.39,143.31,22.49940223]
[1642161381216,10.9751,143.39,143.31,26.49302675]
[1642161381415,0.26,143.39,143.31,36.95782675]
[1642161381717,10.09,143.42,143.32,2.79]
[1642161382113,6.0,143.44,143.32,7.03362452]
[1642161382313,6.0,143.44,143.37,10.4606]
[1642161382515,6.25,143.44,143.38,25.7917724]
[1642161382713,2.789,143.46,143.38,31.4947724]
[1642161382913,2.789,143.47,143.38,31.4947724]
[1642161383112,2.787,143.48,143.38,31.4947724]
[1642161383513,2.787,143.49,143.38,31.4947724]
[1642161383914,4.48777588,143.49,143.38,31.4947724]
[1642161384112,10.48777588,143.49,143.38,31.4947724]
[1642161384316,10.48777588,143.49,143.38,25.7917724]
[1642161384513,10.4582,143.46,143.39,10.4587]
[1642161385714,10.4582,143.46,143.39,10.7087]
[1642161385915,10.4582,143.46,143.39,10.4587]
[1642161386614,10.4582,143.46,143.39,10.7087]
[1642161386817,10.7182,143.46,143.4,2.787]
[1642161387044,10.7182,143.46,143.4,13.4954]
[1642161387217,10.7182,143.46,143.41,30.7203097]
[1642161388617,10.7182,143.46,143.4,0.25]
[1642161388817,10.7182,143.46,143.38,3.037]
[1642161389617,10.7182,143.46,143.38,29.63197241]
[1642161389815,10.7182,143.46,143.38,40.09177241]
[1642161390018,10.7182,143.46,143.38,13.4968]
[1642161392719,10.7182,143.46,143.4,10.4585]
[1642161393019,10.7182,143.46,143.41,2.787]
[1642161393422,10.7182,143.46,143.41,3.037]
[1642161393621,10.7182,143.46,143.38,2.787]
[1642161394020,10.7182,143.46,143.38,13.2468]
[1642161394424,10.7182,143.46,143.38,13.4968]
[1642161394853,10.9682,143.46,143.38,13.4968]
[1642161397551,16.9682,143.46,143.38,13.4968]
[1642161398053,16.9682,143.46,143.38,3.037]
[1642161398453,16.9682,143.46,143.38,2.787]
[1642161398653,10.09,143.45,143.38,2.787]
[1642161398854,10.4614,143.42,143.37,24.5027]
[1642161399057,10.4614,143.42,143.36,2.789]
[1642161399255,10.7214,143.42,143.36,2.789]
[1642161399654,10.7214,143.42,143.36,3.039]
[1642161400556,9.039,143.46,143.36,13.7599]
[1642161400759,0.25,143.46,143.36,13.7599]
[1642161400957,0.25,143.48,143.38,26.71079087]
[1642161401357,33.3365,143.49,143.38,32.96079087]
[1642161401556,30.5475,143.49,143.38,32.96079087]
[1642161401757,30.8075,143.49,143.38,32.96079087]
[1642161402156,30.5475,143.49,143.38,32.96079087]
[1642161402357,40.6375,143.49,143.38,32.96079087]
[1642161402558,10.4581,143.46,143.39,2.787]
[1642161402957,10.4581,143.46,143.39,3.037]
[1642161403556,10.7181,143.46,143.39,3.037]
[1642161404158,10.7181,143.46,143.39,2.787]
[1642161404462,10.4633,143.41,143.33,31.88729304]
[1642161404955,10.9733,143.41,143.33,31.88729304]
[1642161405157,10.9733,143.41,143.34,23.08497249]
[1642161405356,10.9733,143.41,143.34,33.54707249]
[1642161406056,10.9733,143.41,143.34,33.79707249]
[1642161406457,10.7233,143.41,143.34,33.79707249]
[1642161406858,10.7233,143.41,143.34,0.25]
[1642161407061,10.7233,143.41,143.33,37.4154]
[1642161407462,20.8133,143.41,143.33,37.1654]
[1642161407661,21.0633,143.41,143.33,37.1654]
[1642161407860,27.0633,143.41,143.33,37.1654]
[1642161408160,26.8033,143.41,143.33,37.1654]
[1642161408362,20.5533,143.41,143.33,37.4254]
[1642161408561,20.5533,143.41,143.33,37.1654]
[1642161408763,20.5533,143.41,143.33,37.4154]
[1642161409462,26.5533,143.41,143.33,37.6754]
[1642161409765,26.8133,143.41,143.33,37.4154]
[1642161413365,26.8133,143.41,143.34,3.96835211]
[1642161413565,26.8133,143.41,143.35,13.2505]
[1642161413966,26.8133,143.41,143.35,13.5005]
[1642161414567,26.5533,143.41,143.35,10.7115]
[1642161414971,20.5533,143.41,143.35,36.03038754]
[1642161415570,20.5533,143.41,143.35,10.7115]
[1642161415770,10.7233,143.41,143.35,10.7115]
[1642161415969,16.7233,143.41,143.35,10.7115]
[1642161416770,10.7233,143.41,143.35,10.7115]
[1642161416972,10.7233,143.41,143.35,16.7115]
[1642161417177,10.7233,143.41,143.35,10.7115]
[1642161417580,10.7233,143.41,143.35,10.4615]
[1642161417777,10.7233,143.41,143.34,10.4625]
[1642161417977,25.0993,143.41,143.33,23.9151]
[1642161418377,27.8883,143.41,143.33,23.9151]
[1642161418587,10.4638,143.38,143.32,23.3899]
[1642161418986,10.7238,143.38,143.32,23.6399]
[1642161419585,10.7238,143.38,143.32,33.8537]
[1642161419885,0.26,143.38,143.32,33.8537]
[1642161420090,10.4629,143.39,143.32,33.8537]
[1642161420686,10.4629,143.39,143.33,27.85647487]
[1642161420910,10.4629,143.39,143.33,38.31907487]
[1642161421110,10.4629,143.39,143.33,38.56907487]
[1642161421310,20.5523,143.4,143.33,38.56907487]
[1642161421513,69.84,143.47,143.33,38.56907487]
[1642161421514,34.8735,143.44,143.33,46.81107487]
[1642161421712,27.2591,143.43,143.33,46.81107487]
[1642161422114,2.789,143.43,143.33,52.81107487]
[1642161422315,2.789,143.43,143.33,54.34046497]
[1642161422514,10.46,143.43,143.33,54.34046497]
[1642161422716,10.46,143.43,143.33,124.18046497]
[1642161422913,10.46,143.43,143.33,134.27046497]
[1642161423315,10.46,143.43,143.34,3.99266565]
[1642161423513,10.4593,143.44,143.38,10.4593]
[1642161423713,10.4593,143.44,143.39,2.789]
[1642161423914,16.4593,143.44,143.39,30.64547487]
[1642161424116,16.7193,143.44,143.39,30.89547487]
[1642161424515,16.4593,143.44,143.39,30.89547487]
[1642161424715,10.4593,143.44,143.39,41.35467487]
[1642161424917,10.4593,143.44,143.39,38.56567487]
[1642161425917,10.7193,143.44,143.39,38.56567487]
[1642161426119,10.7193,143.44,143.39,10.7092]
[1642161426321,10.7193,143.44,143.39,0.25]
[1642161426518,16.7193,143.44,143.39,2.789]
[1642161426719,10.7193,143.44,143.38,0.25]
[1642161427119,16.7193,143.44,143.36,9.039]
[1642161427318,16.7193,143.44,143.36,3.039]
[1642161427319,10.7193,143.44,143.36,3.039]
[1642161427519,10.7193,143.44,143.36,9.039]
[1642161427821,10.7193,143.44,143.36,3.039]
[1642161428318,10.9693,143.44,143.36,3.039]
[1642161428522,16.9693,143.44,143.37,10.4606]
[1642161428719,16.9693,143.44,143.36,3.039]
[1642161429118,27.0593,143.44,143.36,2.789]
[1642161429525,27.0593,143.44,143.36,3.039]
[1642161429921,27.0593,143.44,143.36,0.25]
[1642161430121,27.0593,143.44,143.35,27.3217]
[1642161430331,27.0593,143.44,143.35,27.5717]
[1642161430332,2.789,143.43,143.35,27.5717]
[1642161430523,10.4617,143.41,143.36,10.4613]
[1642161430926,10.9717,143.41,143.36,10.4613]
[1642161431325,10.7217,143.41,143.36,10.7113]
[1642161437636,10.4617,143.41,143.36,10.7113]
[1642161439566,10.4617,143.41,143.36,10.4613]
[1642161439739,10.4617,143.41,143.36,10.7113]
[1642161440639,10.09,143.44,143.36,10.7113]
[1642161440640,10.461,143.42,143.36,10.7113]
[1642161441939,10.721,143.42,143.36,10.7113]
[1642161443542,10.721,143.42,143.37,25.50809244]
[1642161443738,0.26,143.42,143.37,35.96829244]
[1642161443939,10.7202,143.43,143.37,36.21829244]
[1642161444140,10.7202,143.43,143.38,2.789]
[1642161444639,10.4602,143.43,143.38,3.039]
[1642161445541,33.4919,143.46,143.38,13.4988]
[1642161445748,10.4595,143.44,143.38,20.5578]
[1642161445944,10.7195,143.44,143.38,26.5578]
[1642161446343,10.7195,143.44,143.38,20.5578]
[1642161447080,10.4589,143.45,143.38,20.8178]
[1642161447469,10.4589,143.45,143.38,26.8178]
[1642161447973,33.8599,143.46,143.38,26.8178]
[1642161448173,10.708,143.46,143.38,26.8178]
[1642161448973,10.968,143.46,143.38,26.8178]
[1642161451779,0.51,143.46,143.38,96.6578]
[1642161452076,10.4573,143.47,143.38,96.6578]
[1642161452077,0.51,143.47,143.38,96.6578]
[1642161452276,0.51,143.47,143.38,119.5273]
[1642161452776,0.25,143.47,143.38,119.5273]
[1642161453176,4.24213457,143.48,143.38,119.5273]
[1642161453576,14.69893457,143.48,143.38,49.6873]
[1642161454278,38.47963457,143.48,143.38,49.6873]
[1642161454977,38.73963457,143.48,143.38,49.6873]
[1642161456378,3.99213457,143.48,143.39,1.5293901]
[1642161456581,3.99213457,143.48,143.41,29.76162595]
[1642161456778,3.99213457,143.48,143.45,24.79085863]
[1642161456980,2.787,143.55,143.46,6.06439993]
[1642161457180,2.787,143.56,143.46,75.90439993]
[1642161457379,2.787,143.58,143.47,2.787]
[1642161457580,25.8766,143.59,143.48,27.54694098]
[1642161457783,10.4529,143.54,143.48,35.80094098]
[1642161458082,10.4529,143.54,143.48,42.05094098]
[1642161458281,10.4529,143.54,143.48,14.504]
[1642161458482,6.49847584,143.52,143.48,8.254]
[1642161458681,12.49847584,143.52,143.48,8.254]
[1642161458882,6.49847584,143.52,143.46,10.4539]
[1642161459084,6.49847584,143.52,143.46,10.7039]
[1642161459682,16.95267584,143.52,143.46,10.7039]
[1642161459881,16.95267584,143.52,143.46,0.25]
[1642161460082,16.95267584,143.52,143.45,13.4916]
[1642161460281,16.95267584,143.52,143.45,10.7046]
[1642161460484,22.95267584,143.52,143.43,2.787]
[1642161460684,10.4569,143.49,143.43,2.787]
[1642161460983,21.0569,143.49,143.43,2.787]
[1642161462082,20.8069,143.49,143.43,2.787]
[1642161462483,21.0569,143.49,143.43,3.037]
[1642161462685,21.0569,143.49,143.43,0.25]
[1642161463186,21.0569,143.49,143.42,34.77708201]
[1642161467590,10.9669,143.49,143.42,34.77708201]
[1642161468290,0.51,143.49,143.42,34.77708201]
[1642161468491,10.6,143.5,143.42,34.77708201]
[1642161469592,10.6,143.5,143.42,59.20398201]
[1642161471294,10.6,143.5,143.42,65.20398201]
[1642161473097,10.6,143.5,143.42,41.1338]
[1642161473806,10.34,143.5,143.42,41.1338]
[1642161474204,10.34,143.5,143.44,10.4549]
[1642161475009,20.7956,143.5,143.44,10.4549]
[1642161475207,21.0556,143.5,143.44,10.4549]
[1642161476909,27.0556,143.5,143.44,10.4549]
[1642161480933,21.0556,143.5,143.44,10.4549]
[1642161482235,21.0556,143.5,143.43,10.4561]
[1642161482635,21.0556,143.5,143.43,10.7061]
[1642161483239,23.02266999,143.5,143.43,10.7061]
[1642161484739,29.02266999,143.5,143.43,10.7061]
[1642161485642,23.02266999,143.5,143.43,10.7061]
[1642161487848,29.02266999,143.5,143.43,10.7061]
[1642161488046,29.02266999,143.5,143.43,10.4561]
[1642161488248,2.787,143.49,143.42,2.787]
[1642161488447,10.4603,143.45,143.42,2.787]
[1642161488648,12.877,143.44,143.41,1.9889762]
[1642161488846,10.09,143.43,143.41,1.9889762]
[1642161489049,38.09,143.42,143.41,1.9889762]
[1642161489249,10.09,143.42,143.41,1.9889762]
[1642161489453,10.35,143.42,143.41,1.9889762]
[1642161489949,20.8117,143.42,143.38,1.9889762]
[1642161490449,20.5517,143.42,143.38,1.9889762]
[1642161490651,20.8117,143.42,143.38,1.9889762]
[1642161490848,20.8117,143.42,143.38,2.2389762]
[1642161491248,20.8117,143.42,143.38,0.25]
[1642161491249,20.5517,143.42,143.38,0.25]
[1642161491455,20.8117,143.42,143.38,0.25]
[1642161491949,20.8117,143.42,143.36,24.9982762]
[1642161492648,20.8117,143.42,143.37,1.9889762]
[1642161493049,20.8117,143.42,143.37,2.2389762]
[1642161493451,20.5517,143.42,143.37,2.2389762]
[1642161493854,20.5517,143.42,143.37,5.0279762]
[1642161494850,10.09,143.42,143.37,5.0279762]
[1642161495051,10.09,143.42,143.37,5.2879762]
[1642161495251,38.44916999,143.46,143.37,5.2879762]
[1642161495454,41.66016999,143.46,143.37,5.2879762]
[1642161496254,39.6931,143.46,143.38,1.9889762]
[1642161496453,10.4591,143.44,143.38,2.4989762]
[1642161498456,10.4591,143.44,143.38,2.2389762]
[1642161498656,10.4591,143.44,143.38,12.6978762]
[1642161498856,10.4591,143.44,143.39,2.789]
[1642161499057,10.7191,143.44,143.39,3.039]
[1642161499258,10.7191,143.44,143.39,2.789]
[1642161499459,10.4606,143.42,143.38,1.9889762]
[1642161499689,10.09,143.41,143.38,1.9889762]
[1642161499887,10.09,143.41,143.37,1.9889762]
[1642161500090,10.35,143.41,143.37,1.9889762]
[1642161500489,10.6,143.41,143.37,1.9889762]
[1642161501496,10.6,143.41,143.36,1.9889762]
[1642161501497,10.4631,143.4,143.36,1.9889762]
[1642161501891,10.7231,143.4,143.36,1.9889762]
[1642161502692,10.7231,143.4,143.35,1.9889762]
[1642161502893,16.7231,143.4,143.35,1.9889762]
[1642161503091,16.7231,143.4,143.35,2.2389762]
[1642161505796,16.9731,143.4,143.35,1.9889762]
[1642161506092,16.7231,143.4,143.35,1.9889762]
[1642161506493,16.9731,143.4,143.35,1.9889762]
[1642161506892,10.09,143.39,143.35,1.9889762]
[1642161507092,73.4671,143.37,143.35,7.62e-05]
[1642161507293,43.0,143.35,143.32,2.789]
[1642161507595,12.88,143.34,143.32,2.789]
[1642161507794,10.09,143.34,143.32,2.789]
[1642161507993,10.6,143.34,143.32,2.789]
[1642161509593,21.0673,143.34,143.32,2.789]
[1642161510296,23.8573,143.34,143.25,37.0123]
[1642161510495,46.6165,143.34,143.25,40.4723]
[1642161510694,52.6165,143.34,143.25,40.4723]
[1642161511295,52.6165,143.34,143.25,40.7323]
[1642161511595,52.6165,143.34,143.25,40.4723]
[1642161511895,49.8265,143.34,143.26,3.99537118]
[1642161512096,49.5665,143.34,143.26,4.24537118]
[1642161512296,26.5573,143.34,143.26,14.97287118]
[1642161512497,26.5573,143.34,143.27,2.791]
[1642161512897,26.5573,143.34,143.27,3.041]
[1642161513298,26.5573,143.34,143.27,0.25]
[1642161513501,27.0673,143.34,143.27,0.25]
[1642161514000,27.0673,143.34,143.26,3.041]
[1642161515600,26.8073,143.34,143.26,3.041]
[1642161516601,26.8073,143.34,143.26,3.301]
[1642161516999,27.0673,143.34,143.26,3.301]
[1642161518403,26.1801,143.36,143.26,3.301]
[1642161518404,2.791,143.36,143.27,1.52564898]
[1642161518607,10.09,143.39,143.29,26.20252628]
[1642161518805,10.09,143.39,143.3,2.79]
[1642161519106,10.09,143.39,143.3,9.3]